bitfinex/quotes_BTCUSD_20240721
["timestamp","ask_amount","ask_price","bid_price","bid_amount"]
[1721575550898,0.50640253,67318.0,67317.0,0.000924]
[1721575551258,0.46203722,67318.0,67317.0,0.000924]
[1721575552137,0.45503722,67318.0,67317.0,0.000924]
[1721575552363,0.46303722,67318.0,67317.0,0.000924]
[1721575552560,0.47003722,67318.0,67317.0,0.000924]
[1721575552975,0.47903722,67318.0,67317.0,0.000924]
[1721575554668,0.47892887,67318.0,67317.0,0.000924]
[1721575554870,0.47909005,67318.0,67317.0,0.000924]
[1721575555678,0.47909005,67318.0,67317.0,0.00087222]
[1721575558211,0.33054205,67318.0,67317.0,0.00087222]
[1721575558421,0.33054205,67318.0,67317.0,0.06367692]
[1721575558830,0.33054205,67318.0,67317.0,0.11367692]
[1721575558831,0.03106031,67318.0,67317.0,0.11367692]
[1721575559039,0.03106031,67318.0,67317.0,0.55932792]
[1721575559250,0.03106031,67318.0,67317.0,0.85642892]
[1721575559461,0.03088937,67318.0,67317.0,0.85642892]
[1721575559667,0.02484,67318.0,67317.0,1.44041672]
[1721575560505,0.02484,67318.0,67317.0,1.49041672]
[1721575560711,0.02484,67318.0,67317.0,1.44041672]
[1721575560919,0.00784,67318.0,67317.0,1.49041672]
[1721575561123,0.00784,67318.0,67317.0,1.44141672]
[1721575561744,0.00784,67318.0,67317.0,1.44139585]
[1721575561953,0.00884,67318.0,67317.0,1.44139585]
[1721575562364,0.00184,67318.0,67317.0,1.44139585]
[1721575562493,0.00784,67318.0,67317.0,1.44139585]
[1721575563105,0.00184,67318.0,67317.0,1.44139585]
[1721575563327,0.00284,67318.0,67317.0,1.44439585]
[1721575563734,0.02852644,67340.0,67328.0,0.29705]
[1721575563909,0.46304871,67336.0,67335.0,0.1]
[1721575564083,0.16051433,67339.0,67338.0,0.05]
[1721575565914,0.26051433,67339.0,67336.0,0.05]
[1721575566235,0.1,67338.0,67335.0,0.05]
[1721575566437,0.15438174,67337.0,67335.0,0.05]
[1721575566602,0.15476504,67337.0,67336.0,0.05]
[1721575566975,0.26051433,67337.0,67333.0,0.05]
[1721575567101,0.26051433,67337.0,67335.0,0.05]
[1721575567325,0.26051433,67337.0,67336.0,0.05]
[1721575567531,0.26051433,67337.0,67336.0,0.1]
[1721575569033,0.27451433,67337.0,67336.0,0.05]
[1721575570633,0.27451433,67337.0,67336.0,0.1]
[1721575570840,0.28651433,67337.0,67336.0,0.1]
[1721575571050,0.28651433,67337.0,67336.0,0.05]
[1721575573362,0.28651433,67337.0,67335.0,0.05]
[1721575573563,0.28651433,67337.0,67331.0,0.002794]
[1721575573773,0.28651433,67337.0,67329.0,0.002794]
[1721575573774,0.1635,67336.0,67329.0,0.002794]
[1721575573985,0.148522,67330.0,67323.0,0.052794]
[1721575574199,0.30290574,67329.0,67323.0,0.05]
[1721575574413,0.0819,67328.0,67326.0,0.05]
[1721575574624,0.0819,67328.0,67325.0,0.05]
[1721575574625,0.15438174,67327.0,67325.0,0.05]
[1721575576048,0.15438174,67327.0,67323.0,0.05]
[1721575577014,0.15438174,67327.0,67326.0,0.1]
[1721575577322,0.15438174,67327.0,67326.0,0.05]
[1721575577523,0.15738174,67327.0,67326.0,0.05]
[1721575577738,0.15775369,67327.0,67325.0,0.05]
[1721575578822,0.15775369,67327.0,67326.0,0.05]
[1721575579202,0.15775369,67327.0,67326.0,0.1]
[1721575579436,0.15575369,67327.0,67326.0,0.1]
[1721575579620,0.16455938,67327.0,67326.0,0.1]
[1721575583446,0.01017764,67327.0,67326.0,0.23802659]
[1721575583829,0.004,67327.0,67326.0,0.23802659]
[1721575584968,0.004,67327.0,67326.0,0.68361959]
[1721575585183,0.004,67327.0,67326.0,1.27705497]
[1721575586506,0.004,67327.0,67326.0,1.33995497]
[1721575586926,0.004,67327.0,67326.0,1.42265497]
[1721575587163,0.004,67327.0,67326.0,1.42264851]
[1721575587575,0.004,67327.0,67326.0,1.71971051]
[1721575587780,0.004,67327.0,67326.0,1.74271051]
[1721575590108,0.004,67327.0,67326.0,1.61934359]
[1721575590308,0.004,67327.0,67326.0,1.74270799]
[1721575590741,0.004,67327.0,67326.0,1.74270798]
[1721575594244,0.004,67327.0,67326.0,1.07140919]
[1721575594448,0.004,67327.0,67326.0,0.83755739]
[1721575594672,0.004,67327.0,67326.0,1.13461939]
[1721575594910,0.004,67327.0,67326.0,1.30761939]
[1721575595111,0.004,67327.0,67326.0,1.60468139]
[1721575595991,0.004,67327.0,67326.0,1.80906313]
[1721575596147,0.004,67327.0,67326.0,2.20050093]
[1721575596356,0.004,67327.0,67326.0,2.49550668]
[1721575596556,0.004,67327.0,67326.0,2.49548744]
[1721575597727,0.003,67327.0,67326.0,2.49548744]
[1721575597937,0.01554149,67334.0,67333.0,1.285208]
[1721575598106,0.01554149,67334.0,67333.0,0.73179685]
[1721575599571,0.01554149,67334.0,67333.0,0.28625085]
[1721575599781,0.01554149,67334.0,67333.0,0.43776811]
[1721575599782,0.01654149,67334.0,67333.0,0.43776811]
[1721575599902,0.01754149,67334.0,67333.0,0.44176811]
[1721575600109,0.01754149,67334.0,67333.0,0.73879911]
[1721575600895,0.01754149,67334.0,67333.0,0.615446]
[1721575601069,0.01754149,67334.0,67333.0,0.73879907]
[1721575602028,0.01654149,67334.0,67333.0,0.84765308]
[1721575602414,0.01654149,67334.0,67333.0,0.85065308]
[1721575602570,0.01754149,67334.0,67333.0,0.85065308]
[1721575603187,0.01754149,67334.0,67333.0,0.85065275]
[1721575603969,0.01754149,67334.0,67333.0,1.17068375]
[1721575604325,0.01754149,67334.0,67333.0,1.46771475]
[1721575605346,0.01754149,67334.0,67333.0,1.72021475]
[1721575605725,0.01754149,67334.0,67333.0,0.52126774]
[1721575605937,0.01754149,67334.0,67333.0,1.03582974]
[1721575606410,0.01754149,67334.0,67333.0,0.912477]
[1721575606611,0.01754149,67334.0,67333.0,1.03582694]
[1721575607623,0.01754149,67334.0,67333.0,0.73649594]
[1721575607877,0.01754149,67334.0,67333.0,0.67589594]
[1721575609495,0.01754149,67334.0,67333.0,0.552546]
[1721575609801,0.01754149,67334.0,67333.0,0.67590019]
[1721575612159,0.01754149,67334.0,67333.0,0.37886919]
[1721575612364,0.01754149,67334.0,67333.0,0.67590019]
[1721575612728,0.01754149,67334.0,67333.0,0.552546]
[1721575612927,0.01754149,67334.0,67333.0,0.675901]
[1721575613945,0.01654149,67334.0,67333.0,0.7844843]
[1721575614505,0.01654149,67334.0,67333.0,0.7874843]
[1721575614757,0.01554149,67334.0,67333.0,0.7834843]
[1721575615104,0.01654149,67334.0,67333.0,0.7874843]
[1721575615515,0.01554149,67334.0,67333.0,0.671901]
[1721575615921,0.01554149,67334.0,67333.0,0.675901]
[1721575615922,0.01654149,67334.0,67333.0,0.675901]
[1721575616121,0.01654149,67334.0,67333.0,0.672901]
[1721575616367,0.01554149,67334.0,67333.0,0.668901]
[1721575616586,0.01754149,67334.0,67333.0,0.675901]
[1721575618029,0.01554149,67334.0,67333.0,0.668901]
[1721575618235,0.01654149,67334.0,67333.0,0.672901]
[1721575618779,0.01654149,67334.0,67333.0,0.37587]
[1721575619119,0.01554149,67334.0,67333.0,0.668901]
[1721575619314,0.01554149,67334.0,67333.0,0.66890101]
[1721575619735,0.01654149,67334.0,67333.0,0.67290102]
[1721575620164,0.01754149,67334.0,67333.0,0.67690102]
[1721575620373,0.01754149,67334.0,67333.0,0.74910102]
[1721575620910,0.01754149,67334.0,67333.0,0.75210102]
[1721575621314,0.01554149,67334.0,67333.0,0.74410102]
[1721575621518,0.01554149,67334.0,67333.0,0.620746]
[1721575621951,0.01554149,67334.0,67333.0,0.74410159]
[1721575622156,0.01554149,67334.0,67333.0,0.73810159]
[1721575622786,0.01654149,67334.0,67333.0,0.74210159]
[1721575624210,0.01654149,67334.0,67333.0,0.89645116]
[1721575624735,0.01654149,67334.0,67333.0,0.89945116]
[1721575624942,0.01654149,67334.0,67333.0,0.77609557]
[1721575625156,0.01654149,67334.0,67333.0,0.90037176]
[1721575626408,0.01654149,67334.0,67333.0,1.19740276]
[1721575626610,0.01654149,67334.0,67333.0,0.90037176]
[1721575627698,0.01654149,67334.0,67333.0,1.19740276]
[1721575627933,0.01654149,67334.0,67333.0,1.26000276]
[1721575628353,0.01654149,67334.0,67333.0,1.10565313]
[1721575628558,0.01654149,67334.0,67333.0,0.80862213]
[1721575629009,0.01654149,67334.0,67333.0,1.10565313]
[1721575630105,0.01654149,67334.0,67333.0,0.80862213]
[1721575631684,0.01654149,67334.0,67333.0,0.80862339]
[1721575633376,0.01654149,67334.0,67333.0,1.10565439]
[1721575634908,0.01654149,67334.0,67333.0,1.10565239]
[1721575636243,0.01654149,67334.0,67333.0,0.80862139]
[1721575636477,0.01654149,67334.0,67333.0,0.27979039]
[1721575636478,0.31332323,67334.0,67333.0,0.27979039]
[1721575636705,0.31332323,67334.0,67333.0,0.007924]
[1721575636706,1.55344655,67334.0,67333.0,0.007924]
[1721575636924,0.885055,67326.0,67322.0,0.4]
[1721575637151,1.03943674,67326.0,67323.0,0.002794]
[1721575637395,0.84237474,67326.0,67318.0,0.05]
[1721575638291,0.95330786,67326.0,67318.0,0.1]
[1721575638499,0.95330786,67326.0,67319.0,0.05]
[1721575639181,0.93108395,67326.0,67319.0,0.05]
[1721575639605,0.93936633,67326.0,67319.0,0.05]
[1721575640224,0.85065712,67326.0,67319.0,0.05]
[1721575640443,0.86465712,67326.0,67319.0,0.05]
[1721575640644,0.86502719,67326.0,67319.0,0.05]
[1721575640854,0.87902719,67326.0,67319.0,0.05]
[1721575641075,0.86502719,67326.0,67319.0,0.05]
[1721575641279,0.86502719,67326.0,67318.0,0.1]
[1721575641280,0.91751988,67326.0,67318.0,0.1]
[1721575641482,0.93151988,67326.0,67319.0,0.12717479]
[1721575641728,0.94551988,67326.0,67319.0,0.12717479]
[1721575641905,0.93151988,67326.0,67319.0,0.12717479]
[1721575642112,0.93151988,67326.0,67321.0,0.05]
[1721575642312,0.40543419,67326.0,67325.0,0.050924]
[1721575644059,0.41943419,67326.0,67325.0,0.050924]
[1721575644286,0.56796519,67326.0,67325.0,0.000924]
[1721575644681,0.40543419,67326.0,67325.0,0.000924]
[1721575644891,0.42943419,67326.0,67325.0,0.050924]
[1721575645095,0.41543419,67326.0,67325.0,0.050924]
[1721575645305,0.41543419,67326.0,67325.0,0.000924]
[1721575645489,0.42843419,67326.0,67325.0,0.050924]
[1721575645721,0.41543419,67326.0,67325.0,0.050924]
[1721575645908,0.40543419,67326.0,67325.0,0.050924]
[1721575646111,0.41843419,67326.0,67325.0,0.050924]
[1721575646692,0.34323419,67326.0,67325.0,0.050924]
[1721575646905,0.34323419,67326.0,67325.0,0.000924]
[1721575647057,0.34323419,67326.0,67325.0,0.050924]
[1721575647259,0.35323419,67326.0,67325.0,0.000924]
[1721575647861,0.34323419,67326.0,67325.0,0.000924]
[1721575648088,0.35323419,67326.0,67325.0,0.000924]
[1721575648501,0.27303419,67326.0,67325.0,0.050924]
[1721575649082,0.28603419,67326.0,67325.0,0.050924]
[1721575649450,0.28603419,67326.0,67325.0,0.000924]
[1721575650172,0.57806519,67326.0,67325.0,0.000924]
[1721575653128,0.58925693,67326.0,67325.0,0.000924]
[1721575655690,1.18338093,67326.0,67325.0,0.000924]
[1721575657432,0.87631893,67326.0,67325.0,0.000924]
[1721575657859,0.89031893,67326.0,67325.0,0.000924]
[1721575658248,1.17338093,67326.0,67325.0,0.000924]
[1721575658618,1.18738093,67326.0,67325.0,0.000924]
[1721575659025,1.17338093,67326.0,67325.0,0.000924]
[1721575659228,0.87631893,67326.0,67325.0,0.000924]
[1721575659441,0.51575693,67326.0,67325.0,0.000924]
[1721575659855,0.81281893,67326.0,67325.0,0.000924]
[1721575660274,0.27603419,67326.0,67325.0,0.050924]
[1721575661343,0.29003419,67326.0,67325.0,0.050924]
[1721575661840,0.27603419,67326.0,67325.0,0.050924]
[1721575662212,0.28703419,67326.0,67325.0,0.050924]
[1721575662636,0.27603419,67326.0,67325.0,0.050924]
[1721575662841,0.26303419,67326.0,67325.0,0.050924]
[1721575662980,0.27403419,67326.0,67325.0,0.050924]
[1721575664195,0.01965245,67326.0,67325.0,1.38354488]
[1721575664389,0.00865245,67326.0,67325.0,1.47582965]
[1721575664590,0.00084,67333.0,67332.0,0.248517]
[1721575664882,0.00084,67333.0,67332.0,0.460317]
[1721575665098,0.00084,67333.0,67332.0,1.054387]
[1721575665306,0.00084,67333.0,67332.0,1.17775227]
[1721575665768,0.00084,67333.0,67332.0,1.49778727]
[1721575665974,0.00084,67333.0,67332.0,1.30982323]
[1721575666322,0.00084,67333.0,67332.0,1.24062323]
[1721575666534,0.00084,67333.0,67332.0,1.53765823]
[1721575666535,0.00184,67333.0,67332.0,1.53765823]
[1721575666743,0.00184,67333.0,67332.0,1.53763976]
[1721575667150,0.00284,67333.0,67332.0,1.53763976]
[1721575667561,0.00184,67333.0,67332.0,1.53763976]
[1721575667763,0.00084,67333.0,67332.0,1.53763976]
[1721575667950,0.00184,67333.0,67332.0,1.53863976]
[1721575668752,0.00284,67333.0,67332.0,0.8374988]
[1721575668953,0.00284,67333.0,67332.0,0.8144988]
[1721575669632,0.00184,67333.0,67332.0,0.8124988]
[1721575669839,0.00184,67333.0,67332.0,0.81250736]
[1721575670236,0.00184,67333.0,67332.0,0.93146008]
[1721575670391,0.00184,67333.0,67332.0,0.81250736]
[1721575670802,0.00084,67333.0,67332.0,0.81150736]
[1721575671363,0.00184,67333.0,67332.0,0.81250736]
[1721575671585,0.00284,67333.0,67332.0,0.96216377]
[1721575671788,0.00184,67333.0,67332.0,0.96116377]
[1721575672568,0.00284,67333.0,67332.0,0.96216377]
[1721575672978,0.00284,67333.0,67332.0,0.83880841]
[1721575673201,0.00284,67333.0,67332.0,0.81350702]
[1721575673940,0.00284,67333.0,67332.0,0.51647202]
[1721575674145,0.00184,67333.0,67332.0,0.81250702]
[1721575674341,0.00184,67333.0,67332.0,0.81350702]
[1721575674966,0.00184,67333.0,67332.0,0.81250702]
[1721575675604,0.00184,67333.0,67332.0,0.73350702]
[1721575676251,0.00184,67333.0,67332.0,0.610152]
[1721575676466,0.00284,67333.0,67332.0,0.73350764]
[1721575677122,0.00384,67333.0,67332.0,0.73450764]
[1721575677361,0.00384,67333.0,67332.0,0.611152]
[1721575677982,0.00384,67333.0,67332.0,0.73450764]
[1721575679238,0.00384,67333.0,67332.0,0.611152]
[1721575679637,0.00384,67333.0,67332.0,0.73450732]
[1721575680353,0.00384,67333.0,67332.0,0.611152]
[1721575680719,0.00084,67333.0,67332.0,0.1636]
[1721575680908,0.00084,67333.0,67332.0,0.312117]
[1721575681110,0.00184,67333.0,67332.0,0.312117]
[1721575681309,0.00184,67333.0,67332.0,0.313117]
[1721575681712,0.00184,67333.0,67332.0,0.609152]
[1721575682034,0.00184,67333.0,67332.0,0.610152]
[1721575682438,0.00084,67333.0,67332.0,0.610152]
[1721575682851,0.00184,67333.0,67332.0,0.610152]
[1721575685916,0.00084,67333.0,67332.0,0.610152]
[1721575686121,0.00084,67333.0,67332.0,0.609152]
[1721575686333,0.00084,67333.0,67332.0,0.679352]
[1721575687258,0.00084,67333.0,67332.0,0.80270944]
[1721575687431,0.00084,67333.0,67332.0,0.80370944]
[1721575687664,0.00084,67333.0,67332.0,0.80270944]
[1721575687839,0.00084,67333.0,67332.0,0.80170944]
[1721575688036,0.00084,67333.0,67332.0,0.80270944]
[1721575688243,0.00084,67333.0,67332.0,0.680352]
[1721575688483,0.00084,67333.0,67332.0,0.80370941]
[1721575688683,0.00084,67333.0,67332.0,0.680352]
[1721575688890,0.00084,67333.0,67332.0,0.80370871]
[1721575690621,0.00084,67333.0,67332.0,0.80370933]
[1721575690900,0.00084,67333.0,67332.0,0.80463333]
[1721575691732,0.00084,67333.0,67332.0,0.80463334]
[1721575692840,0.00084,67333.0,67332.0,0.80463335]
[1721575694708,0.00084,67333.0,67332.0,0.681276]
[1721575694905,0.00084,67333.0,67332.0,0.22628149]
[1721575695381,0.00129651,67333.0,67332.0,0.22628149]
[1721575695610,0.00084,67333.0,67332.0,0.22628149]
[1721575696071,0.00084,67333.0,67332.0,0.44399849]
[1721575697397,0.00084,67333.0,67332.0,0.29548149]
[1721575698069,0.00084,67333.0,67332.0,0.29827971]
[1721575698223,0.00084,67333.0,67332.0,0.87029906]
[1721575698401,0.00084,67333.0,67332.0,0.86750506]
[1721575698878,0.00084,67333.0,67332.0,0.86650506]
[1721575701131,0.00084,67333.0,67332.0,0.86650229]
[1721575701328,0.00084,67333.0,67332.0,0.74003494]
[1721575701507,0.00084,67333.0,67332.0,0.74103494]
[1721575701909,0.00084,67333.0,67332.0,0.74003494]
[1721575702112,0.00284,67333.0,67332.0,0.74003494]
[1721575703112,0.00084,67333.0,67332.0,0.74003494]
[1721575703713,0.00084,67333.0,67332.0,1.03706994]
[1721575704132,0.00184,67333.0,67332.0,1.03706994]
[1721575704393,0.00184,67333.0,67332.0,1.03706958]
[1721575706111,0.00184,67333.0,67332.0,1.60096842]
[1721575706311,0.00184,67333.0,67332.0,1.62396842]
[1721575706937,0.00184,67333.0,67332.0,1.86104439]
[1721575707259,0.00184,67333.0,67332.0,1.62396842]
[1721575707681,0.00184,67333.0,67332.0,1.86002816]
[1721575708091,0.00184,67333.0,67332.0,1.86102816]
[1721575708492,0.00084,67333.0,67332.0,1.86102816]
[1721575708745,0.00084,67333.0,67332.0,1.80897897]
[1721575708899,0.00184,67333.0,67332.0,1.80997897]
[1721575709576,0.00184,67333.0,67332.0,1.80897897]
[1721575709767,0.00184,67333.0,67332.0,1.68261513]
[1721575710066,0.00284,67333.0,67332.0,1.68561513]
[1721575710205,0.00284,67333.0,67332.0,1.73766347]
[1721575710928,0.00284,67333.0,67332.0,1.73765803]
[1721575714181,0.00284,67333.0,67332.0,1.377246]
[1721575714322,0.00284,67333.0,67332.0,1.73765721]
[1721575716577,0.00284,67333.0,67332.0,0.80532122]
[1721575716957,0.00284,67333.0,67332.0,1.10235622]
[1721575717527,0.00284,67333.0,67332.0,1.17896507]
[1721575719293,0.00284,67333.0,67332.0,1.10236507]
[1721575720690,0.00284,67333.0,67332.0,1.10236264]
[1721575721293,0.00284,67333.0,67332.0,0.979011]
[1721575721497,0.00284,67333.0,67332.0,0.916711]
[1721575722997,0.00284,67333.0,67332.0,0.253441]
[1721575723200,0.00284,67333.0,67332.0,0.174124]
[1721575724883,0.00284,67333.0,67332.0,0.322641]
[1721575725084,0.00284,67333.0,67332.0,0.56863178]
[1721575725386,0.00284,67333.0,67332.0,1.360346]
[1721575725576,0.00284,67333.0,67332.0,1.383346]
[1721575725918,0.00184,67333.0,67332.0,1.380346]
[1721575726315,0.00184,67333.0,67332.0,1.382346]
[1721575727059,0.00184,67333.0,67332.0,1.380346]
[1721575727262,0.00284,67333.0,67332.0,1.382346]
[1721575727806,0.00284,67333.0,67332.0,1.52829808]
[1721575729070,0.00184,67333.0,67332.0,0.86302808]
[1721575729247,0.00184,67333.0,67332.0,0.319641]
[1721575729447,0.00284,67333.0,67332.0,0.915711]
[1721575729655,0.00284,67333.0,67332.0,0.991411]
[1721575729902,0.00184,67333.0,67332.0,0.989411]
[1721575730110,0.00184,67333.0,67332.0,1.21816438]
[1721575730256,0.00284,67333.0,67332.0,1.51719938]
[1721575730887,0.00284,67333.0,67332.0,0.780276]
[1721575731319,0.00184,67333.0,67332.0,1.076311]
[1721575731527,0.00184,67333.0,67332.0,1.074311]
[1721575731673,0.00084,67333.0,67332.0,1.074311]
[1721575732042,0.00284,67333.0,67332.0,1.22216388]
[1721575732217,0.00284,67333.0,67332.0,1.077311]
[1721575732395,0.00184,67333.0,67332.0,1.075311]
[1721575732795,0.00184,67333.0,67332.0,1.076311]
[1721575733836,0.00284,67333.0,67332.0,1.077311]
[1721575735001,0.00284,67333.0,67332.0,1.51949888]
[1721575738863,0.00284,67333.0,67332.0,1.41857488]
[1721575740091,0.00284,67333.0,67332.0,1.72692366]
[1721575741119,0.00284,67333.0,67332.0,1.41857488]
[1721575741325,0.00284,67333.0,67332.0,1.72692376]
[1721575741533,0.00284,67333.0,67332.0,2.2783405]
[1721575742517,0.00184,67333.0,67332.0,2.2763405]
[1721575743131,0.00084,67333.0,67332.0,2.2753405]
[1721575743333,0.00084,67333.0,67332.0,2.6753405]
[1721575743708,0.00184,67333.0,67332.0,2.72088585]
[1721575744363,0.00184,67333.0,67332.0,2.36799162]
[1721575744572,0.00184,67333.0,67332.0,2.67831232]
[1721575744760,0.00384,67333.0,67332.0,2.37099162]
[1721575744885,0.00384,67333.0,67332.0,2.67931164]
[1721575746115,0.00284,67333.0,67332.0,2.67731164]
[1721575746572,0.00184,67333.0,67332.0,2.68931633]
[1721575747102,0.00284,67333.0,67332.0,2.69831633]
[1721575747669,0.00184,67333.0,67332.0,2.68431633]
[1721575748048,0.00184,67333.0,67332.0,2.68931633]
[1721575748977,0.00284,67333.0,67332.0,2.69831633]
[1721575751022,0.00284,67333.0,67332.0,2.69831157]
[1721575751227,0.00284,67333.0,67332.0,2.74282739]
[1721575751646,0.00284,67333.0,67332.0,2.69831157]
[1721575752260,0.00284,67333.0,67332.0,2.74282739]
[1721575752664,0.00284,67333.0,67332.0,2.69831157]
[1721575753908,0.00284,67333.0,67332.0,2.40127657]
[1721575754118,0.00284,67333.0,67332.0,1.77860374]
[1721575754355,0.00284,67333.0,67332.0,1.9030417]
[1721575754576,0.00284,67333.0,67332.0,1.8401417]
[1721575755333,0.00284,67333.0,67332.0,1.4401417]
[1721575755941,0.00284,67333.0,67332.0,1.59541527]
[1721575756278,0.00284,67333.0,67332.0,1.61841527]
[1721575757290,0.00284,67333.0,67332.0,1.61843407]
[1721575757502,0.00284,67333.0,67332.0,2.01481581]
[1721575757705,0.00284,67333.0,67332.0,1.96481581]
[1721575758276,0.00284,67333.0,67332.0,2.21046624]
[1721575760542,0.00284,67333.0,67332.0,2.21045862]
[1721575763542,0.00284,67333.0,67332.0,2.21045781]
[1721575764164,0.00284,67333.0,67332.0,2.50749281]
[1721575764375,0.00284,67333.0,67332.0,2.21045781]
[1721575765367,0.00284,67333.0,67332.0,2.26045781]
[1721575765556,0.00284,67333.0,67332.0,2.41480738]
[1721575765859,0.00284,67333.0,67332.0,2.36480738]
[1721575766710,0.00284,67333.0,67332.0,2.05647731]
[1721575766916,0.00284,67333.0,67332.0,2.21045891]
[1721575767315,0.00284,67333.0,67332.0,2.16045891]
[1721575767617,0.00284,67333.0,67332.0,2.21045891]
[1721575770138,0.00284,67333.0,67332.0,2.21045862]
[1721575773164,0.00284,67333.0,67332.0,2.02545982]
[1721575773365,0.00284,67333.0,67332.0,2.21045795]
[1721575773564,0.00284,67333.0,67332.0,2.36480752]
[1721575776372,0.00284,67333.0,67332.0,2.05647731]
[1721575776570,0.00284,67333.0,67332.0,2.36480752]
[1721575779958,0.00284,67333.0,67332.0,2.36480719]
[1721575780165,0.00284,67333.0,67332.0,2.21045762]
[1721575780366,0.00284,67333.0,67332.0,2.25500976]
[1721575780718,0.00284,67333.0,67332.0,2.11300976]
[1721575781349,0.00284,67333.0,67332.0,1.71300976]
[1721575782024,0.00284,67333.0,67332.0,1.14239302]
[1721575782229,0.00284,67333.0,67332.0,1.16704088]
[1721575782433,0.08484,67333.0,67332.0,1.16704088]
[1721575782640,0.08484,67333.0,67332.0,1.32139045]
[1721575782762,0.00284,67333.0,67332.0,1.32139045]
[1721575782988,0.00184,67333.0,67332.0,1.6044476]
[1721575783190,0.00284,67333.0,67332.0,1.7602476]
[1721575785000,0.00184,67333.0,67332.0,1.7512476]
[1721575785201,0.00184,67333.0,67332.0,2.00562934]
[1721575785469,0.00284,67333.0,67332.0,2.41362934]
[1721575786014,0.00284,67333.0,67332.0,2.36362934]
[1721575786219,0.00284,67333.0,67332.0,2.36360713]
[1721575788140,0.00284,67333.0,67332.0,2.41360713]
[1721575788543,0.00284,67333.0,67332.0,2.36360713]
[1721575789537,0.00284,67333.0,67332.0,2.36360707]
[1721575790614,0.00284,67333.0,67332.0,2.2092575]
[1721575796748,0.00284,67333.0,67332.0,2.1298575]
[1721575797392,0.00284,67333.0,67332.0,2.19672625]
[1721575799461,0.00284,67333.0,67332.0,2.19673351]
[1721575800278,0.00284,67333.0,67332.0,2.27553351]
[1721575800481,0.00284,67333.0,67332.0,2.32553351]
[1721575801709,0.00284,67333.0,67332.0,2.6548651]
[1721575801930,0.00284,67333.0,67332.0,2.1405418]
[1721575802136,0.00284,67333.0,67332.0,2.65487133]
[1721575802335,0.00284,67333.0,67332.0,3.1062559]
[1721575802703,0.00284,67333.0,67332.0,3.03937373]
[1721575803485,0.00184,67333.0,67332.0,3.02837373]
[1721575803680,0.00184,67333.0,67332.0,2.93568786]
[1721575804089,0.00084,67333.0,67332.0,3.01686404]
[1721575804441,0.00837,67341.0,67332.0,3.01686404]
[1721575804442,0.00837,67341.0,67340.0,0.2485]
[1721575804604,0.002,67349.0,67341.0,0.614692]
[1721575804836,0.002,67349.0,67341.0,1.86725843]
[1721575805038,0.002,67349.0,67341.0,2.11142063]
[1721575805249,0.002,67349.0,67341.0,2.60599255]
[1721575805456,0.002,67349.0,67341.0,2.55599255]
[1721575806310,0.002,67349.0,67341.0,2.60599255]
[1721575807141,0.002,67349.0,67341.0,2.61999255]
[1721575808172,0.00937,67342.0,67341.0,2.6339901]
[1721575808375,0.00837,67342.0,67341.0,2.57541818]
[1721575808754,0.00937,67342.0,67341.0,2.58941818]
[1721575809768,0.002,67349.0,67348.0,1.089377]
[1721575809965,0.00837,67352.0,67351.0,0.861577]
[1721575810194,0.00837,67352.0,67351.0,1.94114922]
[1721575811318,0.00837,67352.0,67351.0,1.94111022]
[1721575811528,0.00837,67352.0,67351.0,2.05018118]
[1721575811932,0.00837,67352.0,67351.0,2.06318118]
[1721575812456,0.00837,67352.0,67351.0,2.45018118]
[1721575813963,0.00837,67352.0,67351.0,2.46418118]
[1721575814119,0.00837,67352.0,67351.0,2.49218118]
[1721575814475,0.00837,67352.0,67351.0,2.1839317]
[1721575814654,0.00837,67352.0,67351.0,2.49218258]
[1721575815278,0.00787,67352.0,67351.0,2.49218258]
[1721575815922,0.00787,67352.0,67351.0,2.50287966]
[1721575816336,0.00787,67352.0,67351.0,2.48887966]
[1721575816742,0.00787,67352.0,67351.0,2.50287966]
[1721575816918,0.00787,67352.0,67351.0,2.47487966]
[1721575817121,0.00787,67352.0,67351.0,2.48887966]
[1721575817704,0.00787,67352.0,67351.0,2.48887763]
[1721575818110,0.00787,67352.0,67351.0,2.50287763]
[1721575820760,0.00787,67352.0,67351.0,2.19462878]
[1721575820957,0.00787,67352.0,67351.0,2.50287663]
[1721575824605,0.00787,67352.0,67351.0,2.50287506]
[1721575826817,0.00787,67352.0,67351.0,2.50287503]
[1721575827316,0.00787,67352.0,67351.0,2.50287566]
[1721575830424,0.00787,67352.0,67351.0,2.19462878]
[1721575830637,0.002,67359.0,67351.0,2.19462878]
[1721575830638,0.002,67359.0,67358.0,1.08922]
[1721575830849,0.002,67369.0,67366.0,0.495327]
[1721575831054,0.002,67369.0,67366.0,2.06311307]
[1721575831260,0.002,67369.0,67366.0,2.13611307]
[1721575831470,0.002,67369.0,67366.0,2.53611307]
[1721575831678,0.002,67369.0,67368.0,1.500842]
[1721575831895,0.002,67369.0,67368.0,2.06364786]
[1721575832331,0.00836,67376.0,67375.0,1.088961]
[1721575832583,0.00836,67376.0,67375.0,1.96526296]
[1721575832783,0.00836,67382.0,67378.0,1.504944]
[1721575832990,0.00836,67382.0,67378.0,1.99057507]
[1721575833199,0.00837,67395.0,67384.0,1.138821]
[1721575833409,0.00837,67395.0,67384.0,2.13236853]
[1721575833828,0.00837,67395.0,67388.0,1.385546]
[1721575834039,0.00837,67395.0,67394.0,0.267581]
[1721575834245,0.00837,67395.0,67394.0,1.72708849]
[1721575834456,0.00837,67395.0,67394.0,1.67509184]
[1721575834885,0.00837,67395.0,67394.0,1.72509184]
[1721575835102,0.00837,67401.0,67400.0,0.198367]
[1721575835103,0.00546,67401.0,67400.0,0.198367]
[1721575835356,0.00546,67401.0,67400.0,1.72198739]
[1721575836196,0.00546,67401.0,67400.0,1.48514444]
[1721575836416,0.00546,67401.0,67400.0,1.86531044]
[1721575836630,0.00546,67401.0,67400.0,1.87860277]
[1721575836842,0.00546,67401.0,67400.0,1.64178941]
[1721575837060,0.00546,67401.0,67400.0,0.54621397]
[1721575837061,0.15236,67401.0,67400.0,0.54621397]
[1721575837288,0.15236,67401.0,67400.0,0.14621397]
[1721575837492,0.15236,67401.0,67400.0,0.12321397]
[1721575837757,0.15236,67401.0,67400.0,0.13521397]